bitfinex/quotes_ETHUSD_20250214
["timestamp","ask_amount","ask_price","bid_price","bid_amount"]
[1739537387595,3.72453,2684.9,2684.7,0.75740632]
[1739537388625,3.72467,2684.8,2684.7,0.75740632]
[1739537388825,3.72506,2684.6,2684.4,0.7528589]
[1739537389157,4.48083,2684.3,2683.9,0.11359731]
[1739537389364,0.7554,2684.3,2683.9,0.11359731]
[1739537389636,3.72524,2684.4,2684.0,0.0075]
[1739537389846,0.7554,2684.5,2684.0,0.0075]
[1739537390014,3.72502,2684.6,2684.1,0.7857]
[1739537390347,3.72502,2684.6,2684.1,6.09846769]
[1739537390840,7.45006,2684.6,2684.1,6.09846769]
[1739537391199,3.72502,2684.6,2684.1,6.09846769]
[1739537391791,0.7554,2684.7,2684.1,6.09846769]
[1739537392008,9.83687,2685.0,2684.6,0.0075]
[1739537392195,3.72415,2685.2,2684.7,4.910055]
[1739537392413,3.72425,2685.1,2684.7,1.185255]
[1739537392800,3.72415,2685.2,2684.7,4.910065]
[1739537393098,3.72432,2685.1,2684.7,1.185255]
[1739537393300,4.5161,2685.5,2684.9,0.0075]
[1739537393539,4.5161,2685.5,2684.9,3.73196]
[1739537393739,4.5161,2685.5,2685.0,0.812]
[1739537393915,3.7237,2685.5,2685.0,4.53634]
[1739537394610,9.04338,2685.8,2685.3,0.772]
[1739537394810,5.32,2685.8,2685.4,3.73125]
[1739537395209,5.32,2685.8,2685.5,3.72367]
[1739537395413,5.32,2685.8,2685.4,0.0075]
[1739537395614,5.32,2685.8,2685.4,0.457834]
[1739537396848,9.04338,2685.8,2685.4,0.450334]
[1739537397199,5.32,2685.8,2685.6,3.72348]
[1739537397548,3.72291,2686.1,2685.5,4.4957]
[1739537397850,3.72291,2686.1,2685.6,0.03723189]
[1739537398446,0.8218,2686.3,2685.5,0.772]
[1739537398632,3.72323,2685.9,2685.5,1.29635928]
[1739537399503,7.44583,2686.1,2685.5,5.01995928]
[1739537399843,3.72306,2686.0,2685.5,5.01997928]
[1739537400047,3.72314,2685.9,2685.5,1.29635928]
[1739537400411,3.72356,2685.6,2685.3,1.51969282]
[1739537400642,4.54536,2685.6,2685.3,0.74769282]
[1739537400971,4.39007212,2685.6,2684.9,0.772]
[1739537401256,3.7242,2685.2,2684.9,1.042]
[1739537401658,7.4478,2685.4,2684.9,1.042]
[1739537401804,3.72399,2685.3,2684.9,2.109065]
[1739537401999,3.72384,2685.4,2684.9,6.59592134]
[1739537402204,3.72363,2685.6,2685.1,3.72419]
[1739537402637,3.72371,2685.5,2685.0,3.7318]
[1739537402821,3.72371,2685.5,2685.0,4.76458113]
[1739537403570,3.72363,2685.6,2685.1,3.72418]
[1739537403908,3.72374,2685.5,2685.0,1.04028113]
[1739537404108,3.72392,2685.4,2685.0,1.04028113]
[1739537404363,3.72421,2685.2,2684.8,0.27]
[1739537404709,7.4484,2685.2,2684.8,0.27]
[1739537405171,7.4484,2685.2,2684.7,0.772]
[1739537405172,3.7245,2685.0,2684.7,0.772]
[1739537405311,3.72455,2684.9,2684.7,0.772]
[1739537405676,3.72455,2684.9,2684.5,1.0801]
[1739537405814,3.72455,2684.9,2684.5,1.560624]
[1739537406437,3.72494,2684.6,2684.3,0.27]
[1739537406614,3.72502,2684.6,2684.3,0.27]
[1739537406954,7.44947,2684.8,2684.3,0.27]
[1739537407155,3.72467,2684.8,2684.3,0.27]
[1739537407331,3.72502,2684.6,2684.4,0.05396576]
[1739537408759,3.72476,2684.8,2684.4,0.05396576]
[1739537409253,3.72465,2684.9,2684.4,3.77917576]
[1739537409408,3.72468,2684.8,2684.4,0.05396576]
[1739537409842,3.72483,2684.7,2684.4,0.05396576]
[1739537410256,7.44971,2684.7,2684.4,0.05396576]
[1739537410457,3.72472,2684.8,2684.4,0.05396576]
[1739537410757,3.72486,2684.7,2684.3,0.75414442]
[1739537410956,3.72498,2684.6,2684.3,0.75414442]
[1739537411622,3.72486,2684.7,2684.3,0.75414442]
[1739537412158,3.72481,2684.7,2684.3,0.75414442]
[1739537413644,3.72474,2684.8,2684.3,4.47945442]
[1739537413982,3.72474,2684.8,2683.9,0.015]
[1739537413983,3.72558,2684.2,2683.9,0.8101]
[1739537414342,3.72558,2684.2,2683.7,4.0801]
[1739537414541,3.72558,2684.2,2683.7,7.80627]
[1739537414782,3.72566,2684.1,2683.9,0.74645786]
[1739537415283,3.72566,2684.1,2683.7,7.80627]
[1739537415587,3.72595,2683.9,2683.7,0.8101]
[1739537415884,3.72595,2683.9,2683.5,1.0984]
[1739537416182,3.72618,2683.8,2683.5,0.8284]
[1739537416390,3.72618,2683.8,2683.2,3.0]
[1739537416391,3.56827212,2683.8,2683.6,0.76398209]
[1739537416545,3.72619,2683.7,2683.6,0.76398209]
[1739537417482,3.72614,2683.8,2683.6,0.76398209]
[1739537417687,3.56827212,2684.1,2683.6,0.76398209]
[1739537417850,3.72619,2683.7,2683.6,0.76398209]
[1739537418273,3.72619,2683.7,2683.2,4.8252]
[1739537418274,3.72639,2683.6,2683.2,1.0984]
[1739537418476,3.72639,2683.6,2683.3,0.48252]
[1739537418648,3.72656,2683.5,2683.2,0.8284]
[1739537418983,3.72662,2683.4,2683.2,0.8284]
[1739537419389,3.72662,2683.4,2683.3,0.74049216]
[1739537419600,3.72646,2683.6,2683.3,0.74049216]
[1739537419794,3.72629,2683.7,2683.3,0.74049216]
[1739537420092,7.45258,2683.7,2683.3,0.74049216]
[1739537420292,3.72629,2683.7,2683.3,0.74049216]
[1739537420654,3.7264,2683.6,2683.3,0.74049216]
[1739537421204,3.72597,2683.9,2683.3,5.02742099]
[1739537421779,3.72637,2683.6,2683.3,0.74049216]
[1739537422006,3.72661,2683.4,2683.2,0.8284]
[1739537422202,3.72661,2683.4,2683.2,1.0984]
[1739537422409,3.72661,2683.4,2683.2,0.27]
[1739537423112,3.72661,2683.4,2683.0,0.9308729]
[1739537423264,3.72703,2683.1,2683.0,0.1491729]
[1739537424665,4.55203,2683.1,2683.0,0.1491729]
[1739537428911,9.87203,2683.1,2683.0,0.1491729]
[1739537429303,5.32,2683.1,2683.0,0.1491729]
[1739537430105,9.04703,2683.1,2683.0,0.1491729]
[1739537431104,9.951733,2683.1,2683.0,0.1491729]
[1739537431436,10.776733,2683.1,2683.0,0.1491729]
[1739537432535,9.87203,2683.1,2683.0,0.1491729]
[1739537439666,9.04703,2683.1,2683.0,0.1491729]
[1739537441046,5.32,2683.1,2683.0,0.1491729]
[1739537441227,5.32,2683.1,2683.0,4.6975429]
[1739537441600,5.32,2683.7,2683.4,3.72657]
[1739537441939,3.72608,2683.8,2683.5,0.8212]
[1739537442151,7.45224,2683.8,2683.5,0.8212]
[1739537442443,7.45223,2683.8,2683.5,0.8212]
[1739537442758,3.72628,2683.7,2683.3,0.8212]
[1739537443104,3.72635,2683.6,2683.3,0.8212]
[1739537443484,0.766,2683.3,2683.0,0.1491729]
[1739537443778,3.72703,2683.1,2683.0,0.1491729]
[1739537449715,4.49285,2683.3,2683.0,0.1491729]
[1739537449912,3.72663,2683.4,2683.0,3.8763229]
[1739537450120,3.72663,2683.4,2683.0,0.99086019]
[1739537450425,4.51847,2683.6,2683.0,3.8762929]
[1739537450634,3.72662,2683.4,2683.0,3.8762929]
[1739537450925,3.72637,2683.6,2683.0,3.8762629]
[1739537451180,5.32,2683.7,2683.0,0.1491729]
[1739537451181,3.72669,2683.4,2683.0,0.1491729]
[1739537451316,3.72642,2683.6,2683.0,0.1491729]
[1739537451508,3.72642,2683.6,2683.1,0.46895729]
[1739537452026,3.72655,2683.5,2683.1,0.46895729]
[1739537452421,3.72642,2683.6,2683.1,0.46895729]
[1739537452772,5.32,2683.7,2683.0,0.1491729]
[1739537452920,3.72683,2683.3,2683.0,0.1491729]
[1739537453320,3.72683,2683.3,2683.0,0.90397997]
[1739537453628,3.72669,2683.4,2683.0,0.90397997]
[1739537455465,3.72648,2683.5,2683.0,4.66838075]
[1739537455615,3.72643,2683.6,2683.1,3.72703]
[1739537457563,3.72642,2683.6,2683.1,3.72703]
[1739537458320,3.72634,2683.6,2683.1,3.72703]
[1739537458768,9.04627,2683.7,2683.2,4.54002]
[1739537459339,9.04627,2683.7,2683.3,3.72675]
[1739537459340,5.32,2683.7,2683.3,3.72675]
[1739537459666,9.04614,2683.8,2683.3,4.553441]
[1739537459825,9.04614,2683.8,2683.3,0.826691]
[1739537460028,3.72621,2683.7,2683.3,0.826691]
[1739537460835,3.72632,2683.7,2683.3,0.826691]
[1739537461037,3.72641,2683.6,2683.2,0.8132]
[1739537461249,3.72634,2683.6,2683.2,0.8132]
[1739537461454,3.7262,2683.7,2683.2,4.53998]
[1739537461635,5.32,2683.8,2683.2,0.8132]
[1739537461842,5.32,2683.8,2683.4,3.72659]
[1739537462462,3.72588,2684.0,2683.5,4.912329]
[1739537463439,3.72574,2684.1,2683.5,4.912259]
[1739537463636,9.83754,2684.3,2683.7,3.72618]
[1739537463873,3.72557,2684.2,2683.7,3.72618]
[1739537464020,3.72557,2684.2,2683.7,4.5900209]
[1739537464424,9.83754,2684.3,2683.8,3.72597]
[1739537464621,5.32,2684.3,2683.8,0.8132]
[1739537464864,9.04545,2684.3,2683.8,4.53919]
[1739537465428,9.81656,2684.7,2684.2,3.72536]
[1739537465623,9.04486,2684.7,2684.3,0.7877]
[1739537465863,9.04488,2684.7,2684.3,0.7877]
[1739537466064,12.76982,2684.7,2684.3,0.7877]
[1739537466481,9.04488,2684.7,2684.3,0.7877]
[1739537466786,3.72495,2684.6,2684.3,0.7877]
[1739537467453,3.72509,2684.5,2684.3,0.7877]
[1739537467653,3.72522,2684.4,2684.1,0.271]
[1739537468090,7.4501,2684.6,2684.1,0.271]
[1739537468287,3.72502,2684.6,2684.1,0.271]
[1739537468600,3.72511,2684.5,2684.1,0.271]
[1739537468801,3.72511,2684.5,2684.1,1.049446]
[1739537469398,3.72502,2684.6,2684.1,1.049446]
[1739537469600,3.72502,2684.6,2684.1,4.775066]
[1739537470002,3.72502,2684.6,2684.2,0.73853612]
[1739537470470,3.72502,2684.6,2684.2,4.46403612]
[1739537470673,3.72502,2684.6,2684.3,0.55134821]
[1739537471066,5.32,2684.7,2684.3,4.27669821]
[1739537471269,3.72447,2685.0,2684.5,3.725]
[1739537471670,9.81586,2685.2,2684.7,4.5124]
[1739537471671,5.32,2685.2,2684.7,4.5124]
[1739537471968,5.32,2685.2,2684.8,3.72454]
[1739537472206,5.32,2685.2,2684.9,0.451224]
[1739537472374,12.76782,2685.4,2684.9,0.451224]
[1739537472572,9.0439,2685.4,2684.9,0.451224]
[1739537473008,5.32,2685.4,2684.9,0.451224]
[1739537473216,5.32,2685.5,2685.1,0.7877]
[1739537473413,5.32,2685.5,2685.2,3.72411]
[1739537473721,5.32,2685.5,2685.1,0.82494058]
[1739537473722,5.32,2685.5,2685.1,4.51187]
[1739537474171,5.32,2685.5,2685.1,0.7877]
[1739537474373,5.32,2685.5,2685.1,2.01270929]
[1739537474575,3.72391,2685.4,2685.1,2.28370929]
[1739537474997,3.72391,2685.4,2685.1,1.0587]
[1739537475401,5.32,2685.5,2685.1,1.0587]
[1739537475677,5.32,2685.5,2685.3,3.72397]
[1739537476310,5.32,2685.5,2685.4,4.51154]
[1739537476469,3.72307,2686.0,2685.4,0.7877]
[1739537476668,3.72307,2686.0,2685.5,0.45116]
[1739537477469,3.7233,2685.8,2685.5,0.45116]
[1739537478604,3.72307,2686.0,2685.5,0.45116]
[1739537479718,5.32,2686.1,2685.5,0.45116]
[1739537479886,3.72351,2685.7,2685.4,0.7877]
[1739537481631,3.72319,2685.9,2685.5,0.7279422]
[1739537481831,3.72331,2685.8,2685.5,0.7279422]
[1739537483335,3.72343,2685.7,2685.5,0.7279422]
[1739537484308,7.44646,2685.9,2685.5,0.7279422]
[1739537484636,3.7233,2685.8,2685.5,1.25190242]
[1739537485937,3.72319,2685.9,2685.5,1.25190242]
[1739537486100,3.72304,2686.0,2685.5,4.97553242]
[1739537486295,9.04296,2686.1,2685.6,3.72348]
[1739537486498,3.72302,2686.0,2685.7,0.779]
[1739537489970,3.72317,2685.9,2685.7,0.779]
[1739537490284,3.72328,2685.8,2685.7,0.779]
[1739537490434,3.72317,2685.9,2685.7,0.779]
[1739537491205,3.72328,2685.8,2685.7,0.779]
[1739537491383,3.72356,2685.6,2685.5,0.7279422]
[1739537491584,3.7239,2685.4,2685.2,0.779]
[1739537491747,3.72409,2685.3,2685.1,0.27]
[1739537491944,3.72409,2685.3,2685.0,0.779]
[1739537492241,3.7239,2685.4,2685.0,0.779]
[1739537492466,3.72409,2685.3,2685.0,1.1839]
[1739537492982,3.72409,2685.3,2685.2,0.76259405]
[1739537493296,4.54363,2685.5,2685.2,0.76259405]
[1739537493503,0.8198,2685.7,2685.2,0.76259405]
[1739537493642,9.04336,2685.8,2685.3,4.50291]
[1739537493844,5.32,2685.8,2685.4,4.28760544]
[1739537494268,0.8198,2686.2,2685.6,0.779]
[1739537494269,5.32,2686.1,2685.6,0.779]
[1739537494578,5.32,2686.1,2685.6,4.50245]
[1739537494579,3.72288,2686.1,2685.6,4.50245]
[1739537494749,9.04281,2686.2,2685.7,0.450245]
[1739537495079,5.32,2686.2,2685.8,3.72326]
[1739537495280,5.32,2686.2,2685.8,3.99326]
[1739537495481,5.32,2686.2,2685.9,0.8282]
[1739537495681,3.72246,2686.4,2685.9,4.55127]
[1739537495856,3.72246,2686.4,2686.0,0.854446]
[1739537496589,3.7224,2686.5,2686.0,0.854446]
[1739537496994,3.7226,2686.3,2686.0,0.854446]
[1739537497163,3.72273,2686.2,2685.9,1.56814022]
[1739537497562,3.7226,2686.3,2685.9,1.56814022]
[1739537499252,7.44529,2686.3,2685.9,1.56814022]
[1739537499449,3.7226,2686.3,2685.9,1.56814022]
[1739537499653,3.72274,2686.2,2685.9,1.56814022]
[1739537502257,3.72274,2686.2,2686.0,0.55614202]
[1739537502799,3.72274,2686.2,2685.9,1.56814022]
[1739537505113,3.72259,2686.3,2685.9,1.56814022]
[1739537506304,3.72273,2686.3,2685.9,1.56814022]
[1739537507010,3.72284,2686.2,2685.9,1.56814022]
[1739537507191,3.723,2686.0,2685.9,1.56814022]
[1739537507373,3.723,2686.0,2685.9,0.73994022]
[1739537507754,3.72263,2686.3,2685.9,0.96867874]
[1739537508590,3.72258,2686.4,2685.9,0.96867874]
[1739537508789,3.7202,2688.1,2686.0,0.8282]
[1739537508790,4.48985,2686.7,2686.0,0.8282]
[1739537508966,3.72251,2686.4,2686.0,0.8282]
[1739537512452,3.72256,2686.4,2686.1,0.55200187]
[1739537513003,3.72262,2686.3,2686.1,0.55200187]
[1739537515213,3.72262,2686.3,2686.0,0.8282]
[1739537516722,3.72241,2686.5,2686.0,0.8282]
[1739537517028,3.72246,2686.4,2686.0,0.8282]
[1739537518286,3.72246,2686.4,2686.0,4.5512]
[1739537518723,3.72246,2686.4,2686.0,0.8282]
[1739537518924,3.72246,2686.4,2686.1,0.55199487]
[1739537520992,3.72246,2686.4,2686.0,0.8282]
[1739537521599,3.72266,2686.3,2685.9,0.96867874]
[1739537521799,3.72261,2686.3,2685.9,0.96867874]
[1739537522002,3.72261,2686.3,2685.9,4.69180874]
[1739537522513,3.72279,2686.2,2685.9,0.96867874]
[1739537523088,3.7226,2686.3,2685.9,0.96867874]
[1739537523290,3.7226,2686.3,2686.0,0.55033787]
[1739537523917,3.72294,2686.1,2685.9,0.96867874]
[1739537524307,3.72294,2686.1,2685.9,0.73994022]
[1739537524636,3.723,2686.0,2685.9,0.73994022]
[1739537525504,3.723,2686.0,2685.2,3.72403]
[1739537525505,3.72366,2685.6,2685.3,1.0935]
[1739537526664,8.20896,2685.8,2685.4,0.74371603]
[1739537527020,4.48558,2685.8,2685.4,0.74371603]
[1739537527246,0.7622,2685.8,2685.4,1.22743763]
[1739537527467,5.32,2686.1,2685.8,3.72327]
[1739537527667,5.32,2686.1,2685.7,0.8245]
[1739537528027,5.32,2686.1,2685.8,3.72326]
[1739537528466,5.32,2686.1,2685.7,0.8245]
[1739537528669,9.04296,2686.1,2685.7,1.279296]
[1739537528844,3.72308,2686.0,2685.7,0.454796]
[1739537529163,9.04296,2686.1,2685.6,3.72352]
[1739537529370,3.72309,2686.0,2685.5,4.54815]
[1739537529986,7.44619,2686.0,2685.5,4.54815]
[1739537531275,3.72309,2686.0,2685.5,4.54815]
[1739537531445,5.32,2686.1,2685.6,3.72356]
[1739537531446,9.04288,2686.1,2685.6,3.72356]
[1739537531644,9.04288,2686.1,2685.7,0.827171]
[1739537531937,5.32,2686.1,2685.7,4.550561]
[1739537532140,5.32,2686.1,2685.9,3.72303]
[1739537532481,4.48449,2686.6,2686.0,3.72289]
[1739537532648,4.48449,2686.6,2686.1,3.72277]
[1739537532982,3.72245,2686.4,2686.2,0.744566]
[1739537533132,3.72234,2686.5,2686.0,3.72296]
[1739537534247,0.7622,2686.6,2686.1,3.72276]
[1739537534441,9.0421,2686.7,2686.2,3.72272]
[1739537534778,12.76426,2686.7,2686.3,0.372272]
[1739537535137,3.7222,2686.6,2686.3,0.372272]
[1739537535482,3.72238,2686.5,2686.3,0.372272]
[1739537535650,3.72238,2686.5,2686.0,4.47672771]
[1739537536354,3.72238,2686.5,2686.0,0.75376771]
[1739537536355,3.72245,2686.4,2686.0,0.75376771]
[1739537536529,3.72274,2686.2,2686.0,0.75376771]
[1739537536727,3.72274,2686.2,2685.7,0.827171]
[1739537537063,3.723,2686.1,2685.7,0.827171]
[1739537537272,3.72278,2686.2,2685.8,0.8375131]
[1739537537647,9.0427,2686.3,2685.9,3.72312]
[1739537537814,3.72273,2686.2,2685.8,5.29019934]
[1739537538007,5.32,2686.3,2685.8,5.29019934]
[1739537538380,9.04259,2686.3,2685.8,9.01338934]
[1739537538573,5.32,2686.3,2686.1,3.72281]
[1739537538779,5.32,2686.3,2686.0,4.54737]
[1739537538984,3.56827212,2686.8,2686.1,3.72286]
[1739537539189,3.72205,2686.7,2686.2,3.72263]
[1739537539382,3.72218,2686.6,2686.2,0.83072161]
[1739537539783,12.76393,2686.8,2686.2,4.55344161]
[1739537539990,9.04192,2686.8,2686.2,4.55344161]
[1739537540328,5.32,2686.8,2686.5,3.72222]
[1739537540880,5.32,2686.8,2686.5,7.44446]
[1739537541225,5.32,2686.8,2686.6,0.744446]
[1739537541471,5.32,2686.8,2686.7,3.72203]
[1739537541604,3.72156,2687.1,2686.6,3.72217]
[1739537542558,3.72162,2687.0,2686.6,3.72217]
[1739537542902,3.72162,2687.0,2686.5,0.7594]
[1739537543101,3.72162,2687.0,2686.6,0.475082]
[1739537544402,3.72157,2687.1,2686.6,4.197222]
[1739537544721,6.112,2687.2,2686.8,3.72187]
[1739537545208,5.32,2687.2,2686.8,3.72187]
[1739537545542,5.32,2687.2,2686.9,3.7217]
[1739537545741,5.32,2687.2,2687.0,5.219367]
[1739537545918,5.32,2687.2,2687.0,1.497757]
[1739537547078,9.04144,2687.2,2686.8,0.7534]
[1739537547485,0.7755,2687.1,2686.6,1.228482]
[1739537547627,0.7755,2687.1,2686.7,3.722]
[1739537547978,0.7755,2687.1,2686.6,4.950572]
[1739537548179,4.49699,2687.1,2686.7,0.4950572]
[1739537548361,0.7755,2687.1,2686.7,0.4950572]
[1739537548563,0.7755,2687.1,2686.7,4.2170172]
[1739537548967,4.497,2687.1,2686.7,0.4950572]
[1739537549587,0.7755,2687.1,2686.7,0.4950572]
[1739537549784,4.49699,2687.1,2686.8,0.54456992]
[1739537552387,0.7755,2687.1,2686.8,0.54456992]
[1739537552594,5.32,2687.2,2686.8,4.26633992]
[1739537552727,5.32,2687.2,2686.8,0.54456992]
[1739537552926,9.04135,2687.2,2686.8,0.54456992]
[1739537553238,3.7215,2687.1,2686.8,1.29994335]
[1739537553478,3.7215,2687.1,2686.8,0.75537343]
[1739537553684,5.32,2687.2,2686.8,0.75537343]
[1739537554000,3.72175,2687.0,2686.8,0.75537343]
[1739537554339,3.72162,2687.0,2686.3,4.47591]
[1739537554688,3.72204,2686.7,2686.4,0.79966316]
[1739537554867,4.49284,2686.7,2686.4,0.269]
[1739537555272,0.7708,2686.7,2686.4,0.269]
[1739537555597,0.7708,2687.1,2686.6,0.8156]
[1739537555737,3.72165,2687.0,2686.6,0.8156]
[1739537555937,3.72165,2687.0,2686.6,1.3722073]
[1739537556136,5.32,2686.9,2686.5,0.75917302]
[1739537556490,3.7219,2686.8,2686.1,0.015]
[1739537556629,3.7219,2686.8,2686.3,3.7225]
[1739537557065,3.7219,2686.8,2686.4,0.73369342]
[1739537557390,3.7219,2686.8,2686.4,1.17931276]
[1739537557787,5.32,2686.9,2686.4,1.99491276]
[1739537557989,3.72191,2686.8,2686.4,1.99491276]
[1739537558994,5.32,2686.9,2686.5,3.72222]
[1739537559149,5.32,2686.9,2686.5,3.72228]
[1739537559355,9.04184,2686.9,2686.6,0.57171928]
[1739537559751,5.32,2686.9,2686.6,0.57171928]
[1739537559950,5.32,2686.9,2686.7,0.8156]
[1739537560276,3.72148,2687.1,2686.7,0.8156]
[1739537561430,4.49251,2687.0,2686.6,0.57171928]
[1739537561630,3.72216,2686.7,2686.4,0.73369342]
[1739537561830,3.72216,2686.7,2686.3,0.269]
[1739537561831,3.72238,2686.5,2686.1,3.72286]
[1739537562055,3.72225,2686.6,2686.2,3.0]
[1739537562285,3.72225,2686.6,2686.2,4.15304]
[1739537562484,3.72217,2686.7,2686.2,7.8757]
[1739537563091,3.72217,2686.7,2686.2,1.90239082]
[1739537563092,3.72219,2686.6,2686.2,1.90239082]
[1739537563887,3.72214,2686.7,2686.2,1.90239082]
[1739537564173,3.72229,2686.6,2686.2,1.90239082]
[1739537564378,3.72214,2686.7,2686.2,1.90239082]
[1739537564529,4.49325,2686.4,2686.0,0.269]
[1739537564874,8.21581,2686.4,2686.0,1.01316559]
[1739537565047,4.49325,2686.4,2686.0,1.01316559]
[1739537567488,3.72262,2686.3,2686.0,0.74416559]
[1739537567733,3.72262,2686.3,2686.1,0.44672956]
[1739537567894,4.49325,2686.4,2686.1,0.44672956]
[1739537569092,0.7708,2686.4,2686.1,0.44672956]
[1739537569399,5.32,2686.7,2686.4,3.72245]
[1739537569691,5.32,2686.7,2686.3,3.72259]
[1739537569841,5.32,2686.7,2686.4,0.453819]
[1739537571087,9.79732,2686.7,2686.2,0.8156]
[1739537571261,9.79732,2686.7,2686.1,7.71455]
[1739537571479,9.79732,2686.7,2686.2,3.72268]
[1739537571681,13.51944,2686.7,2686.2,3.72268]
[1739537572185,9.79732,2686.7,2686.2,3.72268]
[1739537572397,3.72225,2686.6,2686.1,0.269]
[1739537572603,4.47779,2686.4,2685.9,0.269]
[1739537572833,3.72268,2686.3,2685.9,0.269]
[1739537573192,3.72279,2686.2,2685.9,0.269]
[1739537574810,3.72263,2686.3,2685.8,4.47042391]
[1739537574997,0.7552,2686.4,2685.8,1.6743553]
[1739537575193,0.7552,2686.4,2686.0,3.7229]
[1739537575371,0.7552,2686.4,2686.0,3.72289]
[1739537578312,0.7552,2686.4,2686.1,3.72285]
[1739537578528,5.32,2686.5,2686.2,3.72261]
[1739537578896,5.32,2686.5,2686.0,3.723]
[1739537579094,9.04231,2686.5,2686.1,4.548293]
[1739537579628,5.32,2686.5,2686.2,3.72272]
[1739537580175,5.32,2686.5,2686.1,4.548263]
[1739537580375,9.04236,2686.5,2686.1,0.825433]
[1739537580597,3.72236,2686.5,2686.1,0.825433]
[1739537580995,0.7552,2686.7,2686.2,0.5882839]
[1739537581199,4.47735,2686.7,2686.2,4.3109339]
[1739537582027,0.7552,2686.7,2686.2,4.3109339]
[1739537582235,3.72218,2686.6,2686.2,0.5882839]
[1739537582373,3.72218,2686.6,2685.9,4.53131]
[1739537582769,7.44445,2686.6,2686.0,3.72288]
[1739537582916,3.72218,2686.6,2686.1,3.72282]
[1739537583219,3.72218,2686.6,2686.2,3.72269]
[1739537583420,3.72218,2686.6,2686.1,3.72282]
[1739537583577,0.7552,2686.7,2686.3,3.72252]
[1739537583773,0.7552,2686.7,2686.0,0.03722464]
[1739537583774,6.0752,2687.0,2686.6,3.7221]
[1739537584079,6.0752,2687.0,2686.5,3.72225]
[1739537584279,9.79693,2687.0,2686.5,3.72225]
[1739537584592,6.0752,2687.0,2686.5,3.72225]
[1739537584791,0.7552,2687.0,2686.6,0.453055]
[1739537585700,3.72178,2686.9,2686.6,0.453055]
[1739537585927,3.72211,2686.7,2686.2,3.72273]
[1739537586218,0.7632,2686.8,2686.4,7.4447]
[1739537586419,0.7632,2686.8,2686.4,3.72233]
[1739537587221,4.48482,2687.0,2686.5,3.72231]
[1739537588321,3.72185,2686.9,2686.3,1.53861718]
[1739537588498,3.72185,2686.9,2686.3,4.47563718]
[1739537588831,3.72185,2686.9,2686.4,4.16999372]
[1739537590340,3.72185,2686.9,2686.5,3.72229]
[1739537590833,4.48489,2687.0,2686.5,3.72229]
[1739537591039,4.48489,2687.0,2686.5,7.44458]
[1739537591255,0.7632,2687.0,2686.5,0.7855]
[1739537591396,0.7632,2687.0,2686.6,3.72207]
[1739537591598,0.7632,2687.0,2686.7,0.450757]
[1739537592100,4.48491,2687.0,2686.7,0.450757]
[1739537592289,8.20664,2687.0,2686.5,3.7223]
[1739537592495,4.48491,2687.0,2686.5,3.7223]
[1739537595146,0.7632,2687.0,2686.7,3.72202]
[1739537595436,0.7632,2687.0,2686.6,3.72215]
[1739537595948,4.48482,2687.0,2686.6,3.72215]
[1739537596098,4.48482,2687.0,2686.7,0.372215]
[1739537597402,8.20656,2687.0,2686.4,7.89225372]
[1739537597606,8.20653,2687.0,2686.5,3.72229]
[1739537597948,4.48482,2687.0,2686.5,3.72229]
[1739537599344,4.48484,2687.0,2686.6,3.7221]
[1739537600022,4.48484,2687.0,2686.5,3.72228]
[1739537600207,4.48484,2687.0,2686.6,0.78922837]
[1739537602253,3.72198,2686.8,2686.4,3.44756372]
[1739537602432,0.7632,2687.0,2686.4,0.44756372]
[1739537602632,4.50719,2686.6,2686.0,3.7229]
[1739537602834,4.50728,2686.6,2686.0,3.72293]
[1739537603043,3.72248,2686.4,2685.9,3.72314]
[1739537603574,7.44504,2686.4,2685.9,3.72314]
[1739537603875,3.72273,2686.2,2685.8,0.99809603]
[1739537604028,3.72273,2686.2,2685.8,1.68800563]
[1739537604579,7.44557,2686.2,2685.8,1.68800563]
[1739537604745,3.72273,2686.2,2685.8,1.41900563]
[1739537605158,4.5079,2686.1,2685.8,1.41900563]
[1739537605347,4.5079,2686.1,2685.8,0.6899096]
[1739537605548,0.785,2686.1,2685.8,0.6899096]
[1739537605948,0.785,2686.1,2685.7,5.901]
[1739537606274,3.72307,2686.0,2685.7,5.901]
[1739537606832,4.50828,2685.8,2685.7,5.901]
[1739537608672,0.785,2685.8,2685.7,5.901]
[1739537609357,4.50828,2685.8,2685.7,5.901]
[1739537609543,0.785,2685.8,2685.7,5.901]
[1739537610537,0.785,2685.8,2685.4,0.74270596]
[1739537610739,3.72345,2685.7,2685.4,0.74270596]
[1739537610970,0.785,2685.8,2685.4,0.74270596]
[1739537611283,3.72343,2685.7,2685.4,0.74270596]
[1739537612465,0.785,2685.8,2685.4,0.74270596]
[1739537612859,4.50831,2685.8,2685.4,0.74270596]
[1739537613218,9.82831,2685.8,2685.4,0.74270596]
[1739537613402,6.105,2685.8,2685.4,0.74270596]
[1739537613599,6.105,2685.8,2685.4,4.46651596]
[1739537613903,5.32,2685.8,2685.4,5.31245656]
[1739537614107,5.32,2685.8,2685.5,0.7948]
[1739537615982,9.04331,2685.8,2685.4,5.31239656]
[1739537616327,5.32,2685.8,2685.4,9.03613656]
[1739537616485,5.32,2685.8,2685.4,5.31238656]
[1739537617356,5.32,2685.8,2685.5,0.55813866]
[1739537618801,5.32,2685.8,2685.4,4.46644596]
[1739537619354,3.72314,2685.9,2685.4,4.46644596]
[1739537620404,3.7233,2685.8,2685.4,4.46644596]
[1739537620886,3.72315,2685.9,2685.4,4.46644596]
[1739537621509,3.72315,2685.9,2685.4,0.74270596]